fUST/lending_fUST_20250210
["ID","MTS","AMOUNT","RATE_DAILY","PERIOD"]
[352523687,1739151039440,-500.0,0.00010958,2]
[352523688,1739151039449,-500.0,0.00010958,2]
[352523689,1739151039459,-500.0,0.00010958,2]
[352523690,1739151039469,-515.56,0.00010958,2]
[352523691,1739151039478,-540.23098084,0.00010958,2]
[352523692,1739151039488,-500.0,0.00010958,2]
[352523693,1739151039498,-500.0,0.00010958,2]
[352523694,1739151039507,-500.0,0.00010958,2]
[352523695,1739151039517,-500.0,0.00010958,2]
[352523696,1739151039527,-500.0,0.00010958,2]
[352523697,1739151039537,-500.0,0.00010958,2]
[352523698,1739151039546,-500.0,0.00010958,2]
[352523699,1739151039555,-500.0,0.00010958,2]
[352523700,1739151039565,-500.0,0.00010958,2]
[352523701,1739151039575,-500.0,0.00010958,2]
[352523702,1739151039584,-500.0,0.00010958,2]
[352523703,1739151039594,-500.0,0.00010958,2]
[352523704,1739151039603,-500.0,0.00010958,2]
[352523705,1739151039613,-500.0,0.00010958,2]
[352523706,1739151039622,-500.0,0.00010958,2]
[352523707,1739151039632,-500.0,0.00010958,2]
[352523708,1739151039641,-500.0,0.00010958,2]
[352523709,1739151039652,-500.0,0.00010958,2]
[352523710,1739151039661,-194.84084991,0.00010958,2]
[352523711,1739151039670,-500.0,0.00010958,2]
[352523712,1739151039680,-361.53,0.00010958,2]
[352523713,1739151039690,-550.15,0.00010958,2]
[352523714,1739151039699,-3404.15,0.00010958,2]
[352523715,1739151039708,-500.0,0.00010958,2]
[352523716,1739151039718,-8700.3,0.00010958,2]
[352523717,1739151039729,-331.82,0.00010958,2]
[352523718,1739151039738,-738.06,0.00010958,2]
[352523719,1739151039749,-500.0,0.00010958,2]
[352523720,1739151039759,-500.0,0.00010958,2]
[352523721,1739151039768,-570.76,0.00010958,2]
[352523722,1739151039778,-1187.14,0.00010958,2]
[352523723,1739151039789,-3219.97,0.00010958,2]
[352523724,1739151039799,-621.51,0.00010958,2]
[352523725,1739151039808,-500.0,0.00010958,2]
[352523726,1739151039818,-584.62,0.00010958,2]
[352523727,1739151039828,-1808.21,0.00010958,2]
[352523728,1739151039842,-500.0,0.00010958,2]
[352523729,1739151039858,-3658.6,0.00010958,2]
[352523730,1739151039868,-500.0,0.00010958,2]
[352523731,1739151039877,-500.0,0.00010958,2]
[352523732,1739151039887,-1029.68,0.00010958,2]
[352523733,1739151039897,-500.0,0.00010958,2]
[352523734,1739151039907,-500.0,0.00010958,2]
[352523735,1739151039916,-506.88345466,0.00010958,2]
[352523736,1739151039926,-500.0,0.00010958,2]
[352523737,1739151039935,-500.0,0.00010958,2]
[352523738,1739151039946,-500.0,0.00010958,2]
[352523739,1739151039955,-500.0,0.00010958,2]
[352523740,1739151039965,-3294.42,0.00010958,2]
[352523741,1739151039975,-675.69,0.00010958,2]
[352523742,1739151039985,-500.0,0.00010958,2]
[352523743,1739151039995,-1215.15,0.00010958,2]
[352523744,1739151040004,-392.17556573,0.00010958,2]
[352523745,1739151040013,-500.0,0.00010958,2]
[352523746,1739151040024,-500.0,0.00010958,2]
[352523747,1739151040034,-500.0,0.00010958,2]
[352523748,1739151040043,-500.0,0.00010958,2]
[352523749,1739151040053,-500.0,0.00010958,2]
[352523750,1739151040062,-500.0,0.00010958,2]
[352523751,1739151040072,-500.0,0.00010958,2]
[352523752,1739151040081,-500.0,0.00010958,2]
[352523753,1739151040090,-500.0,0.00010958,2]
[352523754,1739151040099,-500.0,0.00010958,2]
[352523755,1739151040109,-1260.56,0.00010958,2]
[352523756,1739151040119,-500.0,0.00010958,2]
[352523757,1739151040128,-11029.28,0.00010958,2]
[352523758,1739151040137,-1232.12,0.00010958,2]
[352523759,1739151040147,-1230.99,0.00010958,2]
[352523760,1739151040158,-500.0,0.00010958,2]
[352523761,1739151040167,-500.0,0.00010958,2]
[352523762,1739151040177,-500.0,0.00010958,2]
[352523763,1739151040188,-500.0,0.00010958,2]
[352523764,1739151040197,-500.0,0.00010958,2]
[352523766,1739151040207,-500.0,0.00010958,2]
[352523769,1739151040216,-500.0,0.00010958,2]
[352523772,1739151040226,-500.0,0.00010958,2]
[352523774,1739151040235,-500.0,0.00010958,2]
[352523776,1739151040244,-500.0,0.00010958,2]
[352523778,1739151040254,-500.0,0.00010958,2]
[352523780,1739151040263,-20893.0,0.00010958,2]
[352523782,1739151040272,-500.0,0.00010958,2]
[352523784,1739151040281,-500.0,0.00010958,2]
[352523786,1739151040291,-500.0,0.00010958,2]
[352523790,1739151040300,-712.7,0.00010958,2]
[352523792,1739151040310,-1125.75,0.00010958,2]
[352523794,1739151040319,-500.0,0.00010958,2]
[352523796,1739151040329,-1830.91,0.00010958,2]
[352523798,1739151040338,-2183.81,0.00010958,2]
[352523800,1739151040347,-600.83,0.00010958,2]
[352523802,1739151040357,-500.0,0.00010958,2]
[352523804,1739151040366,-503.09337898,0.00010958,2]
[352523806,1739151040376,-500.0,0.00010958,2]
[352523808,1739151040385,-503.34,0.00010958,2]
[352523810,1739151040394,-500.0,0.00010958,2]
[352523812,1739151040404,-978.35,0.00010958,2]
[352523814,1739151040414,-671.12,0.00010958,2]
[352523819,1739151040525,-931.46,0.00010958,2]
[352523820,1739151040536,-500.0,0.00010958,2]
[352523821,1739151040546,-636.85,0.00010958,2]
[352523822,1739151040555,-500.0,0.00010958,2]
[352523823,1739151040565,-500.0,0.00010958,2]
[352523824,1739151040574,-500.0,0.00010958,2]
[352523825,1739151040584,-500.0,0.00010958,2]
[352523826,1739151040593,-500.0,0.00010958,2]
[352523827,1739151040603,-578.15,0.00010958,2]
[352523828,1739151040612,-425.84481811,0.00010958,2]
[352523829,1739151040621,-937.2,0.00010958,2]
[352523831,1739151040630,-500.0,0.00010958,2]
[352523832,1739151040640,-258.61389216,0.00010958,2]
[352523833,1739151040649,-805.57,0.00010958,2]
[352523834,1739151040659,-500.0,0.00010958,2]
[352523835,1739151040668,-550.53,0.00010958,2]
[352523836,1739151040677,-500.0,0.00010958,2]
[352523837,1739151040687,-500.0,0.00010958,2]
[352523838,1739151040696,-500.0,0.00010958,2]
[352523839,1739151040706,-500.0,0.00010958,2]
[352523840,1739151040715,-500.0,0.00010958,2]
[352523841,1739151040725,-1335.8,0.00010958,2]
[352523843,1739151040734,-500.0,0.00010958,2]
[352523844,1739151040743,-500.0,0.00010958,2]
[352523845,1739151040753,-500.0,0.00010958,2]
[352523846,1739151040763,-335.20476405,0.00010958,2]
[352523847,1739151040773,-500.0,0.00010958,2]
[352523848,1739151040783,-500.0,0.00010958,2]
[352523849,1739151040792,-500.0,0.00010958,2]
[352523850,1739151040801,-500.0,0.00010958,2]
[352523851,1739151040810,-543.51,0.00010958,2]
[352523852,1739151040820,-662.11,0.00010958,2]
[352523853,1739151040829,-500.0,0.00010958,2]
[352523854,1739151040838,-500.0,0.00010958,2]
[352523855,1739151040848,-501.67771774,0.00010958,2]
[352523856,1739151040866,-2887.24,0.00010958,2]
[352523857,1739151040877,-500.0,0.00010958,2]
[352523858,1739151040887,-500.0,0.00010958,2]
[352523859,1739151040896,-500.0,0.00010958,2]
[352523860,1739151040906,-500.0,0.00010958,2]
[352523861,1739151040915,-500.0,0.00010958,2]
[352523862,1739151040924,-500.95309738,0.00010958,2]
[352523863,1739151040934,-500.0,0.00010958,2]
[352523864,1739151040943,-502.47034774,0.00010958,2]
[352523865,1739151040952,-500.0,0.00010958,2]
[352523866,1739151040961,-503.32702649,0.00010958,2]
[352523867,1739151040971,-500.0,0.00010958,2]
[352523868,1739151040980,-1337.89,0.00010959,2]
[352523869,1739151040989,-1114.91,0.00010959,2]
[352523870,1739151040999,-929.09,0.00010959,2]
[352523871,1739151041008,-774.24,0.00010959,2]
[352523872,1739151041017,-645.2,0.00010959,2]
[352523873,1739151041026,-537.67,0.00010959,2]
[352523874,1739151041035,-448.05,0.00010959,2]
[352523875,1739151041045,-374.51,0.00010959,2]
[352523876,1739151041054,-312.09,0.00010959,2]
[352523877,1739151041063,-260.07,0.00010959,2]
[352523878,1739151041072,-180.78568244,0.00010961,2]
[352523879,1739151041082,-151.0,0.00011,2]
[352523880,1739151041091,-180.78568244,0.00011064,2]
[352523881,1739151041101,-500.0,0.00011095,2]
[352523882,1739151041110,-500.0,0.00011095,2]
[352523883,1739151041119,-500.0,0.00011095,2]
[352523884,1739151041129,-500.0,0.00011095,2]
[352523885,1739151041138,-500.0,0.00011095,2]
[352523886,1739151041147,-434.64,0.00011095,2]
[352523887,1739151041158,-500.0,0.00011095,2]
[352523888,1739151041167,-500.0,0.00011095,2]
[352523889,1739151041176,-218.7046021,0.00011095,2]
[352523890,1739151041186,-500.0,0.00011095,2]
[352523891,1739151041195,-500.0,0.00011095,2]
[352523892,1739151041204,-273.46,0.00011095,2]
[352523893,1739151041215,-808.3,0.00011095,2]
[352523894,1739151041226,-500.0,0.00011095,2]
[352523895,1739151041236,-279.74,0.00011095,2]
[352523896,1739151041245,-500.0,0.00011095,2]
[352523897,1739151041255,-500.0,0.00011095,2]
[352523898,1739151041264,-500.0,0.00011095,2]
[352523899,1739151041273,-500.0,0.00011095,2]
[352523900,1739151041282,-500.0,0.00011095,2]
[352523901,1739151041292,-500.0,0.00011095,2]
[352523902,1739151041301,-500.0,0.00011095,2]
[352523903,1739151041310,-500.0,0.00011095,2]
[352523904,1739151041320,-500.0,0.00011095,2]
[352523905,1739151041329,-500.0,0.00011095,2]
[352523906,1739151041339,-500.0,0.00011095,2]
[352523907,1739151041348,-500.0,0.00011095,2]
[352523908,1739151041357,-500.0,0.00011095,2]
[352523909,1739151041365,-500.0,0.00011095,2]
[352523910,1739151041374,-500.0,0.00011095,2]
[352523911,1739151041385,-500.0,0.00011095,2]
[352523912,1739151041394,-500.0,0.00011095,2]
[352523913,1739151041404,-500.0,0.00011095,2]
[352523914,1739151041414,-990.28,0.00011095,2]
[352523915,1739151041423,-500.0,0.00011095,2]
[352523916,1739151041433,-631.56,0.00011095,2]
[352523917,1739151041443,-500.0,0.00011095,2]
[352523918,1739151041453,-227.4,0.00011095,2]
[352523919,1739151041462,-500.0,0.00011095,2]
[352523920,1739151041471,-500.0,0.00011095,2]
[352523921,1739151041481,-500.0,0.00011095,2]
[352523922,1739151041491,-500.0,0.00011095,2]
[352523923,1739151041500,-500.0,0.00011095,2]
[352523924,1739151041510,-500.0,0.00011095,2]
[352523925,1739151041520,-500.0,0.00011095,2]
[352523926,1739151041530,-500.0,0.00011095,2]
[352523927,1739151041539,-500.0,0.00011095,2]
[352523928,1739151041548,-500.0,0.00011095,2]
[352523929,1739151041558,-500.0,0.00011095,2]
[352523930,1739151041567,-500.0,0.00011095,2]
[352523931,1739151041577,-500.0,0.00011095,2]
[352523932,1739151041586,-500.0,0.00011095,2]
[352523933,1739151041595,-500.0,0.00011095,2]
[352523934,1739151041605,-500.0,0.00011095,2]
[352523935,1739151041614,-500.0,0.00011095,2]
[352523936,1739151041623,-521.51,0.00011095,2]
[352523937,1739151041633,-500.0,0.00011095,2]
[352523938,1739151041643,-500.0,0.00011095,2]
[352523939,1739151041651,-500.0,0.00011095,2]
[352523940,1739151041661,-500.0,0.00011095,2]
[352523941,1739151041670,-1758.43,0.00011095,2]
[352523942,1739151041680,-500.0,0.00011095,2]
[352523943,1739151041689,-500.0,0.00011095,2]
[352523944,1739151041699,-500.0,0.00011095,2]
[352523945,1739151041708,-500.0,0.00011095,2]
[352523946,1739151041718,-500.0,0.00011095,2]
[352523947,1739151041727,-500.0,0.00011095,2]
[352523948,1739151041736,-500.0,0.00011095,2]
[352523949,1739151041746,-500.0,0.00011095,2]
[352523950,1739151041755,-500.0,0.00011095,2]
[352523951,1739151041765,-439.51425107,0.00011095,2]
[352523952,1739151041774,-500.0,0.00011095,2]
[352523953,1739151041784,-500.0,0.00011095,2]
[352523954,1739151041793,-515.56,0.00011095,2]
[352523955,1739151041803,-500.0,0.00011095,2]
[352523956,1739151041812,-500.0,0.00011095,2]
[352523957,1739151041822,-500.0,0.00011095,2]
[352523958,1739151041832,-500.0,0.00011095,2]
[352523959,1739151041842,-309.6872035,0.00011095,2]
[352523960,1739151041851,-500.0,0.00011095,2]
[352523961,1739151041865,-579.7583026,0.00011095,2]
[352523962,1739151041874,-380.83,0.00011095,2]
[352523963,1739151041884,-500.0,0.00011095,2]
[352523964,1739151041894,-500.0,0.00011095,2]
[352523965,1739151041906,-500.0,0.00011095,2]
[352523966,1739151041915,-500.0,0.00011095,2]
[352523967,1739151041925,-500.0,0.00011095,2]
[352523968,1739151041935,-516.6680374,0.00011095,2]
[352523969,1739151041945,-500.0,0.00011095,2]
[352523970,1739151041954,-3404.15,0.00011095,2]
[352523971,1739151041964,-500.0,0.00011095,2]
[352523972,1739151041974,-8700.3,0.00011095,2]
[352523973,1739151041983,-738.06,0.00011095,2]
[352523974,1739151041992,-500.0,0.00011095,2]
[352523975,1739151042002,-1187.14,0.00011095,2]
[352523976,1739151042011,-3219.97,0.00011095,2]
[352523977,1739151042021,-500.0,0.00011095,2]
[352523978,1739151042030,-584.62,0.00011095,2]
[352523979,1739151042040,-1808.21,0.00011095,2]
[352523980,1739151042049,-500.0,0.00011095,2]
[352523981,1739151042059,-3658.6,0.00011095,2]
[352523982,1739151042068,-241.97791711,0.00011095,2]
[352523983,1739151042078,-1029.68,0.00011095,2]
[352523984,1739151042087,-500.0,0.00011095,2]
[352523985,1739151042096,-500.0,0.00011095,2]
[352523986,1739151042106,-636.78,0.00011095,2]
[352523987,1739151042115,-500.0,0.00011095,2]
[352523988,1739151042127,-500.0,0.00011095,2]
[352523989,1739151042144,-500.0,0.00011095,2]
[352523990,1739151042153,-3294.42,0.00011095,2]
[352523991,1739151042162,-675.69,0.00011095,2]
[352523992,1739151042171,-1215.15,0.00011095,2]
[352523993,1739151042181,-500.0,0.00011095,2]
[352523994,1739151042190,-500.0,0.00011095,2]
[352523995,1739151042199,-500.0,0.00011095,2]
[352523996,1739151042209,-500.0,0.00011095,2]
[352523997,1739151042218,-163.82,0.00011095,2]
[352523998,1739151042227,-500.0,0.00011095,2]
[352523999,1739151042237,-500.0,0.00011095,2]
[352524000,1739151042246,-500.0,0.00011095,2]
[352524001,1739151042255,-500.0,0.00011095,2]
[352524002,1739151042265,-1260.56,0.00011095,2]
[352524003,1739151042274,-500.0,0.00011095,2]
[352524004,1739151042283,-500.0,0.00011095,2]
[352524005,1739151042293,-11029.28,0.00011095,2]
[352524006,1739151042302,-1232.12,0.00011095,2]
[352524007,1739151042312,-1230.99,0.00011095,2]
[352524008,1739151042321,-500.0,0.00011095,2]
[352524009,1739151042331,-500.0,0.00011095,2]
[352524010,1739151042341,-500.0,0.00011095,2]
[352524011,1739151042350,-500.0,0.00011095,2]
[352524012,1739151042360,-500.0,0.00011095,2]
[352524013,1739151042369,-500.0,0.00011095,2]
[352524014,1739151042379,-500.0,0.00011095,2]
[352524015,1739151042389,-500.0,0.00011095,2]
[352524016,1739151042398,-500.0,0.00011095,2]
[352524017,1739151042411,-500.0,0.00011095,2]
[352524018,1739151042420,-20893.0,0.00011095,2]
[352524019,1739151042429,-500.0,0.00011095,2]
[352524020,1739151042438,-500.0,0.00011095,2]
[352524021,1739151042448,-712.7,0.00011095,2]
[352524022,1739151042457,-500.0,0.00011095,2]
[352524023,1739151042466,-1125.75,0.00011095,2]
[352524024,1739151042476,-1830.91,0.00011095,2]
[352524025,1739151042485,-2183.81,0.00011095,2]
[352524026,1739151042495,-600.83,0.00011095,2]
[352524027,1739151042504,-500.0,0.00011095,2]
[352524028,1739151042514,-500.0,0.00011095,2]
[352524029,1739151042523,-503.34,0.00011095,2]
[352524030,1739151042533,-503.02,0.00011095,2]
[352524031,1739151042542,-978.35,0.00011095,2]
[352524032,1739151042552,-671.12,0.00011095,2]
[352524033,1739151042561,-931.46,0.00011095,2]
[352524034,1739151042571,-500.0,0.00011095,2]
[352524035,1739151042580,-636.85,0.00011095,2]
[352524036,1739151042589,-500.0,0.00011095,2]
[352524037,1739151042599,-500.0,0.00011095,2]
[352524038,1739151042611,-500.0,0.00011095,2]
[352524039,1739151042705,-500.0,0.00011095,2]
[352524040,1739151042716,-500.0,0.00011095,2]
[352524041,1739151042726,-578.15,0.00011095,2]
[352524042,1739151042736,-937.2,0.00011095,2]
[352524043,1739151042745,-500.0,0.00011095,2]
[352524044,1739151042755,-805.57,0.00011095,2]
[352524045,1739151042764,-500.0,0.00011095,2]
[352524046,1739151042773,-550.53,0.00011095,2]
[352524047,1739151042782,-500.0,0.00011095,2]
[352524048,1739151042792,-500.0,0.00011095,2]
[352524049,1739151042801,-238.14,0.00011095,2]
[352524050,1739151042811,-500.0,0.00011095,2]
[352524051,1739151042820,-1335.8,0.00011095,2]
[352524052,1739151042830,-500.0,0.00011095,2]
[352524053,1739151042839,-500.0,0.00011095,2]
[352524054,1739151042849,-502.39802918,0.00011095,2]
[352524055,1739151042861,-531.7758061,0.00011095,2]
[352524056,1739151042870,-500.0,0.00011095,2]
[352524058,1739151042879,-500.0,0.00011095,2]
[352524060,1739151042888,-500.0,0.00011095,2]
[352524061,1739151042898,-543.51,0.00011095,2]
[352524062,1739151042909,-662.11,0.00011095,2]
[352524063,1739151042918,-500.0,0.00011095,2]
[352524064,1739151042927,-500.0,0.00011095,2]
[352524065,1739151042938,-2887.24,0.00011095,2]
[352524066,1739151042947,-500.0,0.00011095,2]
[352524067,1739151042956,-386.04268912,0.00011095,2]
[352524068,1739151042965,-500.0,0.00011095,2]
[352524069,1739151042976,-358.23546809,0.00011095,2]
[352524070,1739151042989,-500.0,0.00011095,2]
[352524071,1739151042998,-500.0,0.00011095,2]
[352524072,1739151043007,-500.0,0.00011095,2]
[352524073,1739151043016,-180.78568244,0.00011166,2]
[352524074,1739151043026,-151.0,0.000112,2]
[352524075,1739151043035,-500.0,0.00011231,2]
[352524076,1739151043044,-500.0,0.00011231,2]
[352524077,1739151043055,-627.61863764,0.00011231,2]
[352524078,1739151043064,-643.84583152,0.00011231,2]
[352524079,1739151043074,-500.0,0.00011232,2]
[352524080,1739151043083,-500.0,0.00011232,2]
[352524081,1739151043091,-500.0,0.00011232,2]
[352524082,1739151043100,-500.0,0.00011232,2]
[352524083,1739151043109,-500.0,0.00011232,2]
[352524084,1739151043118,-322.64476715,0.00011232,2]
[352524085,1739151043127,-808.3,0.00011232,2]
[352524086,1739151043137,-500.0,0.00011232,2]
[352524087,1739151043146,-500.0,0.00011232,2]
[352524088,1739151043155,-500.0,0.00011232,2]
[352524089,1739151043164,-562.36324636,0.00011232,2]
[352524090,1739151043174,-199.97,0.00011232,2]
[352524091,1739151043183,-450.67224111,0.00011232,2]
[352524092,1739151043192,-500.0,0.00011232,2]
[352524093,1739151043201,-500.0,0.00011232,2]
[352524094,1739151043211,-500.0,0.00011232,2]
[352524095,1739151043220,-586.48,0.00011232,2]
[352524096,1739151043228,-500.0,0.00011232,2]
[352524097,1739151043238,-336.99517103,0.00011232,2]
[352524098,1739151043247,-500.0,0.00011232,2]
[352524099,1739151043256,-500.0,0.00011232,2]
[352524100,1739151043265,-500.0,0.00011232,2]
[352524101,1739151043274,-990.28,0.00011232,2]
[352524102,1739151043283,-500.0,0.00011232,2]
[352524103,1739151043291,-500.0,0.00011232,2]
[352524104,1739151043300,-500.0,0.00011232,2]
[352524105,1739151043310,-500.0,0.00011232,2]
[352524106,1739151043319,-500.0,0.00011232,2]
[352524107,1739151043328,-500.0,0.00011232,2]
[352524108,1739151043337,-500.0,0.00011232,2]
[352524109,1739151043346,-500.0,0.00011232,2]
[352524110,1739151043355,-500.0,0.00011232,2]
[352524111,1739151043364,-500.0,0.00011232,2]
[352524112,1739151043373,-500.0,0.00011232,2]
[352524113,1739151043382,-376.10915311,0.00011232,2]
[352524114,1739151043392,-500.0,0.00011232,2]
[352524115,1739151043401,-500.0,0.00011232,2]
[352524116,1739151043412,-500.0,0.00011232,2]
[352524117,1739151043421,-500.0,0.00011232,2]
[352524118,1739151043430,-500.0,0.00011232,2]
[352524119,1739151043439,-521.51,0.00011232,2]
[352524120,1739151043448,-500.0,0.00011232,2]
[352524121,1739151043458,-500.0,0.00011232,2]
[352524122,1739151043467,-500.0,0.00011232,2]
[352524123,1739151043476,-500.0,0.00011232,2]
[352524124,1739151043484,-1758.43,0.00011232,2]
[352524125,1739151043494,-500.0,0.00011232,2]
[352524126,1739151043504,-500.0,0.00011232,2]
[352524127,1739151043513,-500.0,0.00011232,2]
[352524128,1739151043522,-500.0,0.00011232,2]
[352524129,1739151043531,-500.0,0.00011232,2]
[352524130,1739151043540,-500.0,0.00011232,2]
[352524131,1739151043550,-500.0,0.00011232,2]
[352524132,1739151043559,-500.0,0.00011232,2]
[352524133,1739151043568,-515.56,0.00011232,2]
[352524134,1739151043577,-500.0,0.00011232,2]
[352524135,1739151043586,-500.0,0.00011232,2]
[352524136,1739151043595,-500.0,0.00011232,2]
[352524137,1739151043604,-500.0,0.00011232,2]
[352524138,1739151043614,-465.71202098,0.00011232,2]
[352524139,1739151043623,-500.0,0.00011232,2]
[352524140,1739151043632,-500.0,0.00011232,2]
[352524141,1739151043641,-500.0,0.00011232,2]
[352524142,1739151043652,-500.0,0.00011232,2]
[352524143,1739151043661,-3404.15,0.00011232,2]
[352524144,1739151043670,-500.0,0.00011232,2]
[352524145,1739151043679,-8700.3,0.00011232,2]
[352524146,1739151043688,-738.06,0.00011232,2]
[352524147,1739151043697,-500.0,0.00011232,2]
[352524148,1739151043707,-1187.14,0.00011232,2]
[352524149,1739151043716,-3219.97,0.00011232,2]
[352524151,1739151043725,-500.0,0.00011232,2]
[352524153,1739151043735,-584.62,0.00011232,2]
[352524154,1739151043744,-1808.21,0.00011232,2]
[352524155,1739151043754,-500.0,0.00011232,2]
[352524156,1739151043764,-3658.6,0.00011232,2]
[352524157,1739151043773,-1029.68,0.00011232,2]
[352524158,1739151043782,-500.0,0.00011232,2]
[352524159,1739151043791,-500.0,0.00011232,2]
[352524160,1739151043800,-500.0,0.00011232,2]
[352524161,1739151043810,-500.0,0.00011232,2]
[352524162,1739151043820,-3294.42,0.00011232,2]
[352524163,1739151043829,-675.69,0.00011232,2]
[352524164,1739151043838,-1215.15,0.00011232,2]
[352524165,1739151043848,-500.0,0.00011232,2]
[352524166,1739151043861,-500.0,0.00011232,2]
[352524167,1739151043875,-500.0,0.00011232,2]
[352524168,1739151043884,-500.0,0.00011232,2]
[352524169,1739151043894,-500.0,0.00011232,2]
[352524170,1739151043905,-500.0,0.00011232,2]
[352524171,1739151043914,-500.0,0.00011232,2]
[352524172,1739151043924,-1260.56,0.00011232,2]
[352524173,1739151043939,-500.0,0.00011232,2]
[352524174,1739151043949,-11029.28,0.00011232,2]
[352524175,1739151043958,-1232.12,0.00011232,2]
[352524176,1739151043968,-1230.99,0.00011232,2]
[352524177,1739151043977,-500.0,0.00011232,2]
[352524178,1739151043987,-500.0,0.00011232,2]
[352524179,1739151043996,-500.0,0.00011232,2]
[352524180,1739151044005,-500.0,0.00011232,2]
[352524181,1739151044014,-500.0,0.00011232,2]
[352524182,1739151044025,-500.0,0.00011232,2]
[352524183,1739151044034,-500.0,0.00011232,2]
[352524184,1739151044043,-500.0,0.00011232,2]
[352524185,1739151044052,-500.0,0.00011232,2]
[352524186,1739151044061,-20893.0,0.00011232,2]
[352524187,1739151044071,-379.68,0.00011232,2]
[352524188,1739151044080,-500.0,0.00011232,2]
[352524189,1739151044089,-500.0,0.00011232,2]
[352524190,1739151044099,-712.7,0.00011232,2]
[352524191,1739151044109,-1125.75,0.00011232,2]
[352524192,1739151044118,-1732.61117363,0.00011232,2]
[352524193,1739151044127,-1830.91,0.00011232,2]
[352524194,1739151044136,-2183.81,0.00011232,2]
[352524195,1739151044145,-600.83,0.00011232,2]
[352524196,1739151044156,-500.0,0.00011232,2]
[352524197,1739151044166,-500.0,0.00011232,2]
[352524198,1739151044175,-503.34,0.00011232,2]
[352524199,1739151044184,-978.35,0.00011232,2]
[352524200,1739151044193,-671.12,0.00011232,2]
[352524201,1739151044203,-931.46,0.00011232,2]
[352524202,1739151044212,-500.0,0.00011232,2]
[352524203,1739151044222,-636.85,0.00011232,2]
[352524204,1739151044231,-500.0,0.00011232,2]
[352524205,1739151044239,-500.0,0.00011232,2]
[352524206,1739151044249,-500.0,0.00011232,2]
[352524207,1739151044258,-500.0,0.00011232,2]
[352524208,1739151044267,-578.15,0.00011232,2]
[352524209,1739151044276,-937.2,0.00011232,2]
[352524210,1739151044286,-500.0,0.00011232,2]
[352524211,1739151044295,-805.57,0.00011232,2]
[352524212,1739151044304,-397.88625519,0.00011232,2]
[352524213,1739151044313,-550.53,0.00011232,2]
[352524214,1739151044323,-500.0,0.00011232,2]
[352524215,1739151044332,-500.0,0.00011232,2]
[352524216,1739151044342,-500.0,0.00011232,2]
[352524217,1739151044351,-1335.8,0.00011232,2]
[352524218,1739151044362,-500.0,0.00011232,2]
[352524219,1739151044371,-500.0,0.00011232,2]
[352524220,1739151044380,-281.22814296,0.00011232,2]
[352524221,1739151044389,-500.0,0.00011232,2]
[352524222,1739151044399,-500.0,0.00011232,2]
[352524223,1739151044410,-543.51,0.00011232,2]